[Event "SixDays One Year IM-B 2023"]
[Site "Budapest"]
[Date "2023.09.20"]
[Round "5.1"]
[White "Pap, Gyula"]
[Black "Meessen, Rudolf"]
[Result "1/2-1/2"]
[ECO "B07"]
[WhiteElo "2429"]
[BlackElo "2109"]
[Annotator "ChessBase"]
[PlyCount "120"]
[EventDate "2023.09.18"]
[EventType "tourn"]
[EventCountry "HUN"]
[SourceTitle "playchess.com"]
[Source "ChessBase"]
[SourceQuality "1"]
[TimeControl "5400+30"]

1. e4 {[%emt 0:02:02]} d6 {[%emt 0:00:09]} 2. d4 {[%emt 0:01:13]} Nf6 {[%emt 0:00:06]} 3. Nc3 {[%emt 0:01:07]} e5 {[%emt 0:00:10]} 4. Nge2 {[%emt 0:06:20]} exd4 {[%emt 0:00:06]} 5. Nxd4 {[%emt 0:01:00]} Be7 {[%emt 0:00:06]} 6. Bf4 {[%emt 0:07:26]} O-O {[%emt 0:00:06]} 7. Qf3 {[%emt 0:02:55]} Nc6 {[%emt 0:02:17]} 8. Nf5 {[%emt 0:06:55]} Bxf5 {[%emt 0:04:48]} 9. exf5 {[%emt 0:00:06]} Qd7 {[%emt 0:08:50]} 10. Qh3 {[%emt 0:03:06]} d5 {[%emt 0:02:23]} 11. O-O-O {[%emt 0:00:40]} d4 {[%emt 0:04:29]} 12. Bc4 {[%emt 0:18:04]} Bd6 {[%emt 0:04:11]} 13. Ne2 {[%emt 0:02:39]} Bxf4+ {[%emt 0:02:15]} 14. Nxf4 {[%emt 0:02:34]} Ne5 {[%emt 0:00:33]} 15. Be2 {[%emt 0:00:45]} c5 {[%emt 0:00:05]} 16. g4 {[%emt 0:00:22]} Rfe8 {[%emt 0:07:55]} 17. Qg2 {[%emt 0:04:40]} Rad8 {[%emt 0:02:48]} 18. Kb1 {[%emt 0:02:45]} Qc6 {[%emt 0:08:50]} 19. Rhg1 {[%emt 0:12:07]} Qxg2 {[%emt 0:13:47]} 20. Rxg2 {[%emt 0:00:05]} a6 {[%emt 0:00:24]} 21. g5 {[%emt 0:05:28]} Ne4 {[%emt 0:01:42]} 22. g6 {[%emt 0:04:10]} hxg6 {[%emt 0:01:39]} 23. fxg6 {[%emt 0:00:18]} Nxg6 {[%emt 0:03:25]} 24. Nxg6 {[%emt 0:00:33]} fxg6 {[%emt 0:00:04]} 25. f3 {[%emt 0:01:58]} Nd6 {[%emt 0:01:18]} 26. Bd3 {[%emt 0:00:06]} Re3 {[%emt 0:07:31]} 27. Rg3 {[%emt 0:04:02]} Rf8 {[%emt 0:01:58]} 28. Rxg6 {[%emt 0:03:12]} Rf6 {[%emt 0:00:11]} 29. Rg5 {[%emt 0:00:40]} c4 {[%emt 0:00:54]} 30. Bf1 {[%emt 0:00:44]} b5 {[%emt 0:03:30]} 31. a4 {[%emt 0:01:29]} Nf5 {[%emt 0:09:00]} 32. Bh3 {[%emt 0:02:17]} Rxf3 {[%emt 0:00:07]} 33. Bg4 {[%emt 0:00:08]} Rf4 {[%emt 0:00:37]} 34. Bxf5 {[%emt 0:02:39]} R6xf5 {[%emt 0:00:49]} 35. Rxf5 {[%emt 0:00:09]} Rxf5 {[%emt 0:00:03]} 36. Rxd4 {[%emt 0:00:44]} Rf1+ {[%emt 0:02:58]} 37. Ka2 {[%emt 0:00:01]} Rf2 {[%emt 0:00:10]} 38. c3 {[%emt 0:00:05]} Rxh2 {[%emt 0:00:07]} 39. Ka3 {[%emt 0:02:16]} Kf7 {[%emt 0:00:18]} 40. Rd7+ {[%emt 0:00:25]} Kf8 {[%emt 0:00:26]} 41. Rd5 {[%emt 0:01:09]} Ke7 {[%emt 0:00:34]} 42. Rg5 {[%emt 0:01:13]} Kf6 {[%emt 0:00:32]} 43. Rc5 {[%emt 0:00:05]} Re2 {[%emt 0:01:13]} 44. axb5 {[%emt 0:00:42]} axb5 {[%emt 0:00:01]} 45. Rxb5 {[%emt 0:00:08]} g5 {[%emt 0:00:10]} 46. Rb4 {[%emt 0:00:55]} Re4 {[%emt 0:00:06]} 47. Rb8 {[%emt 0:00:58]} Kf5 {[%emt 0:00:32]} 48. Rf8+ {[%emt 0:00:18]} Ke5 {[%emt 0:00:45]} 49. b4 {[%emt 0:00:36]} cxb3 {[%emt 0:00:22]} 50. Kxb3 {[%emt 0:00:07]} g4 {[%emt 0:00:03]} 51. c4 {[%emt 0:00:49]} Rf4 {[%emt 0:03:32]} 52. Rg8 {[%emt 0:00:14]} Kd4 {[%emt 0:00:06]} 53. Rg5 {[%emt 0:00:37]} Ke3 {[%emt 0:00:23]} 54. Kb4 {[%emt 0:00:39]} Kf3 {[%emt 0:01:41]} 55. Kb5 {[%emt 0:00:06]} g3 {[%emt 0:00:04]} 56. c5 {[%emt 0:00:06]} Rg4 {[%emt 0:01:01]} 57. Rxg4 {[%emt 0:00:12]} Kxg4 {[%emt 0:00:14]} 58. c6 {[%emt 0:00:04]} g2 {[%emt 0:00:05]} 59. c7 {[%emt 0:00:06]} g1=Q {[%emt 0:00:16]} 60. c8=Q+ {[%emt 0:00:05]} Kf3 {[%emt 0:00:25]} 1/2-1/2

[Event "SixDays One Year IM-B 2023"]
[Site "Budapest"]
[Date "2023.09.20"]
[Round "5.2"]
[White "To, Nhat Minh"]
[Black "Balint, Vilmos"]
[Result "1/2-1/2"]
[ECO "C16"]
[WhiteElo "2342"]
[BlackElo "2217"]
[Annotator "ChessBase"]
[PlyCount "144"]
[EventDate "2023.09.18"]
[EventType "tourn"]
[EventCountry "HUN"]
[SourceTitle "playchess.com"]
[Source "ChessBase"]
[SourceQuality "1"]
[TimeControl "5400+30"]

1. e4 {[%emt 0:07:06]} e6 {[%emt 0:25:11]} 2. d4 {[%emt 0:00:05]} d5 {[%emt 0:00:02]} 3. Nc3 {[%emt 0:00:04]} Bb4 {[%emt 0:00:04]} 4. e5 {[%emt 0:00:02]} Ne7 {[%emt 0:00:10]} 5. a3 {[%emt 0:00:05]} Bxc3+ {[%emt 0:00:02]} 6. bxc3 {[%emt 0:00:04]} b6 {[%emt 0:00:01]} 7. Qg4 {[%emt 0:00:07]} Ng6 {[%emt 0:00:03]} 8. h4 {[%emt 0:00:03]} h5 {[%emt 0:00:02]} 9. Qd1 {[%emt 0:00:06]} Ba6 {[%emt 0:02:29]} 10. Bxa6 {[%emt 0:00:08]} Nxa6 {[%emt 0:00:03]} 11. Bg5 {[%emt 0:00:05]} Qd7 {[%emt 0:00:06]} 12. Ne2 {[%emt 0:00:06]} Qc6 {[%emt 0:02:45]} 13. Qd3 {[%emt 0:02:12]} Qc4 {[%emt 0:00:58]} 14. Qxc4 {[%emt 0:13:56]} dxc4 {[%emt 0:00:02]} 15. O-O-O {[%emt 0:00:38]} c6 {[%emt 0:00:59]} 16. Ng3 {[%emt 0:00:37]} Nc7 {[%emt 0:00:33]} 17. Ne4 {[%emt 0:01:33]} Kd7 {[%emt 0:00:51]} 18. Rh3 {[%emt 0:08:31]} Raf8 {[%emt 0:03:31]} 19. Rf3 {[%emt 0:04:09]} Nd5 {[%emt 0:01:19]} 20. Rh1 {[%emt 0:01:21]} Rhg8 {[%emt 0:04:37]} 21. Kd2 {[%emt 0:05:42]} a6 {[%emt 0:09:14]} 22. Rhh3 {[%emt 0:02:18]} Nge7 {[%emt 0:06:59]} 23. Bxe7 {[%emt 0:01:03]} Kxe7 {[%emt 0:00:03]} 24. Rhg3 {[%emt 0:06:32]} f6 {[%emt 0:05:59]} 25. Rg6 {[%emt 0:08:24]} Rd8 {[%emt 0:04:09]} 26. Rfg3 {[%emt 0:06:51]} Kf7 {[%emt 0:00:19]} 27. Nd6+ {[%emt 0:12:38]} Kf8 {[%emt 0:00:04]} 28. Rf3 {[%emt 0:03:41]} b5 {[%emt 0:04:56]} 29. Nb7 {[%emt 0:02:27]} Ra8 {[%emt 0:02:03]} 30. g4 {[%emt 0:03:52]} Ne7 {[%emt 0:02:55]} 31. Rg5 {[%emt 0:00:56]} hxg4 {[%emt 0:00:15]} 32. Rxg4 {[%emt 0:00:00]} Nf5 {[%emt 0:02:17]} 33. Nc5 {[%emt 0:02:38]} Kf7 {[%emt 0:00:31]} 34. exf6 {[%emt 0:00:59]} gxf6 {[%emt 0:00:18]} 35. Rgf4 {[%emt 0:00:18]} Rg6 {[%emt 0:07:44]} 36. Re4 {[%emt 0:03:49]} Ng7 {[%emt 0:06:44]} 37. Rg3 {[%emt 0:00:05]} Rh6 {[%emt 0:01:23]} 38. Rge3 {[%emt 0:01:21]} f5 {[%emt 0:01:38]} 39. Rf4 {[%emt 0:00:01]} Ke7 {[%emt 0:00:56]} 40. Re1 {[%emt 0:00:52]} Ra7 {[%emt 0:00:57]} 41. Rg1 {[%emt 0:01:38]} Kd6 {[%emt 0:00:04]} 42. Rf3 {[%emt 0:00:06]} Rxh4 {[%emt 0:00:11]} 43. Rfg3 {[%emt 0:00:48]} Rh7 {[%emt 0:02:05]} 44. Rg6 {[%emt 0:00:02]} a5 {[%emt 0:00:44]} 45. a4 {[%emt 0:00:45]} Re7 {[%emt 0:01:29]} 46. Rb1 {[%emt 0:00:22]} Rh2 {[%emt 0:01:41]} 47. axb5 {[%emt 0:00:25]} cxb5 {[%emt 0:00:10]} 48. Rxb5 {[%emt 0:00:30]} Rxf2+ {[%emt 0:00:08]} 49. Kc1 {[%emt 0:00:44]} a4 {[%emt 0:01:15]} 50. Nxa4 {[%emt 0:01:34]} Ra7 {[%emt 0:00:39]} 51. Rb4 {[%emt 0:01:41]} Nh5 {[%emt 0:01:44]} 52. Rb6+ {[%emt 0:01:16]} Kc7 {[%emt 0:00:14]} 53. Rbxe6 {[%emt 0:00:52]} Rxa4 {[%emt 0:00:17]} 54. Re7+ {[%emt 0:00:02]} Kd8 {[%emt 0:00:08]} 55. Rh7 {[%emt 0:00:09]} Re2 {[%emt 0:01:00]} 56. Rg8+ {[%emt 0:01:12]} Re8 {[%emt 0:00:04]} 57. Rxe8+ {[%emt 0:00:07]} Kxe8 {[%emt 0:00:01]} 58. Rxh5 {[%emt 0:00:06]} Ra5 {[%emt 0:01:29]} 59. Rh7 {[%emt 0:00:11]} f4 {[%emt 0:00:26]} 60. Kd2 {[%emt 0:00:11]} Rg5 {[%emt 0:00:29]} 61. Rh4 {[%emt 0:02:02]} Rg2+ {[%emt 0:00:09]} 62. Kc1 {[%emt 0:00:42]} f3 {[%emt 0:00:43]} 63. Rf4 {[%emt 0:00:20]} Rf2 {[%emt 0:00:21]} 64. d5 {[%emt 0:00:44]} Kd7 {[%emt 0:00:04]} 65. Rxc4 {[%emt 0:00:28]} Kd6 {[%emt 0:00:04]} 66. Rd4 {[%emt 0:00:15]} Rg2 {[%emt 0:00:26]} 67. Rf4 {[%emt 0:00:41]} f2 {[%emt 0:00:04]} 68. Kd1 {[%emt 0:00:40]} Ke5 {[%emt 0:01:14]} 69. Rf8 {[%emt 0:00:21]} Kxd5 {[%emt 0:00:04]} 70. Ke2 {[%emt 0:00:16]} f1=Q+ {[%emt 0:00:06]} 71. Kxf1 {[%emt 0:00:19]} Rxc2 {[%emt 0:00:04]} 72. Rc8 {[%emt 0:00:08]} Ke4 {[%emt 0:00:06]} 1/2-1/2

[Event "SixDays One Year IM-B 2023"]
[Site "Budapest"]
[Date "2023.09.20"]
[Round "5.3"]
[White "Pagan, Jonathan"]
[Black "Szabo, Abel"]
[Result "1/2-1/2"]
[ECO "E15"]
[WhiteElo "2021"]
[BlackElo "2234"]
[Annotator "ChessBase"]
[PlyCount "99"]
[EventDate "2023.09.18"]
[EventType "tourn"]
[EventCountry "HUN"]
[SourceTitle "playchess.com"]
[Source "ChessBase"]
[SourceQuality "1"]
[TimeControl "5400+30"]

1. d4 {[%emt 0:06:40]} Nf6 {[%emt 0:00:11]} 2. c4 {[%emt 0:00:14]} e6 {[%emt 0:00:07]} 3. Nf3 {[%emt 0:00:05]} b6 {[%emt 0:00:09]} 4. g3 {[%emt 0:00:07]} Bb4+ {[%emt 0:00:33]} 5. Bd2 {[%emt 0:00:12]} Bxd2+ {[%emt 0:00:09]} 6. Nbxd2 {[%emt 0:01:40]} Bb7 {[%emt 0:02:43]} 7. Bg2 {[%emt 0:00:05]} O-O {[%emt 0:00:29]} 8. O-O {[%emt 0:00:23]} d6 {[%emt 0:00:38]} 9. Qc2 {[%emt 0:04:37]} Nbd7 {[%emt 0:00:42]} 10. e4 {[%emt 0:01:34]} e5 {[%emt 0:00:13]} 11. d5 {[%emt 0:02:25]} a5 {[%emt 0:04:06]} 12. b3 {[%emt 0:01:14]} Qe7 {[%emt 0:02:12]} 13. a3 {[%emt 0:00:34]} Ra7 {[%emt 0:02:26]} 14. Nb1 {[%emt 0:04:09]} Rb8 {[%emt 0:06:37]} 15. Nc3 {[%emt 0:07:03]} Ba6 {[%emt 0:00:34]} 16. Nb5 {[%emt 0:03:36]} Bxb5 {[%emt 0:06:32]} 17. cxb5 {[%emt 0:00:05]} Nc5 {[%emt 0:01:01]} 18. Nd2 {[%emt 0:00:08]} Qd7 {[%emt 0:01:20]} 19. Qc4 {[%emt 0:00:14]} g6 {[%emt 0:04:03]} 20. Rac1 {[%emt 0:02:35]} Rc8 {[%emt 0:00:48]} 21. b4 {[%emt 0:10:30]} Nb7 {[%emt 0:01:53]} 22. f4 {[%emt 0:08:45]} Ne8 {[%emt 0:04:51]} 23. f5 {[%emt 0:10:53]} f6 {[%emt 0:04:29]} 24. h4 {[%emt 0:01:19]} Rca8 {[%emt 0:02:15]} 25. Rc2 {[%emt 0:01:08]} Nd8 {[%emt 0:06:28]} 26. Kh2 {[%emt 0:03:13]} axb4 {[%emt 0:02:30]} 27. axb4 {[%emt 0:00:04]} Qg7 {[%emt 0:01:53]} 28. fxg6 {[%emt 0:03:51]} hxg6 {[%emt 0:01:47]} 29. Qe2 {[%emt 0:06:28]} Ra4 {[%emt 0:03:55]} 30. Rb2 {[%emt 0:00:25]} Ra3 {[%emt 0:00:51]} 31. Nc4 {[%emt 0:00:21]} R3a4 {[%emt 0:01:11]} 32. Qg4 {[%emt 0:01:15]} Nf7 {[%emt 0:03:13]} 33. Qe6 {[%emt 0:01:57]} Kh7 {[%emt 0:00:42]} 34. Ne3 {[%emt 0:03:25]} Nh6 {[%emt 0:02:10]} 35. Ng4 {[%emt 0:05:42]} Nxg4+ {[%emt 0:06:14]} 36. Qxg4 {[%emt 0:00:04]} Qf7 {[%emt 0:01:38]} 37. Bh3 {[%emt 0:01:38]} Ng7 {[%emt 0:01:04]} 38. Qf3 {[%emt 0:00:39]} Nh5 {[%emt 0:02:12]} 39. Bg4 {[%emt 0:00:59]} Ra3 {[%emt 0:02:10]} 40. Rb3 {[%emt 0:00:03]} Ra2+ {[%emt 0:00:48]} 41. Rf2 {[%emt 0:00:34]} Ng7 {[%emt 0:03:27]} 42. Qg2 {[%emt 0:00:53]} Rxf2 {[%emt 0:01:43]} 43. Qxf2 {[%emt 0:00:03]} Rf8 {[%emt 0:00:13]} 44. Rf3 {[%emt 0:00:50]} Qe8 {[%emt 0:01:29]} 45. Rxf6 {[%emt 0:01:02]} Rxf6 {[%emt 0:00:08]} 46. Qxf6 {[%emt 0:00:05]} Qxb5 {[%emt 0:00:12]} 47. h5 {[%emt 0:01:41]} gxh5 {[%emt 0:02:10]} 48. Bf5+ {[%emt 0:00:03]} Nxf5 {[%emt 0:00:47]} 49. Qxf5+ {[%emt 0:00:48]} Kh6 {[%emt 0:00:27]} 50. Qf6+ {[%emt 0:00:08]} 1/2-1/2

[Event "SixDays One Year IM-B 2023"]
[Site "Budapest"]
[Date "2023.09.20"]
[Round "5.4"]
[White "Valkova, Angelika"]
[Black "Kozusek, Daniel"]
[Result "0-1"]
[ECO "D31"]
[WhiteElo "2057"]
[BlackElo "2365"]
[Annotator "ChessBase"]
[PlyCount "110"]
[EventDate "2023.09.18"]
[EventType "tourn"]
[EventCountry "HUN"]
[SourceTitle "playchess.com"]
[Source "ChessBase"]
[SourceQuality "1"]
[TimeControl "5400+30"]

1. d4 {[%emt 0:02:23]} d5 {[%emt 0:01:10]} 2. c4 {[%emt 0:00:06]} e6 {[%emt 0:00:03]} 3. Nc3 {[%emt 0:00:07]} Bb4 {[%emt 0:01:31]} 4. cxd5 {[%emt 0:00:08]} exd5 {[%emt 0:00:06]} 5. a3 {[%emt 0:00:05]} Bxc3+ {[%emt 0:00:29]} 6. bxc3 {[%emt 0:00:04]} Nf6 {[%emt 0:00:42]} 7. e3 {[%emt 0:00:19]} Bf5 {[%emt 0:00:29]} 8. Ne2 {[%emt 0:00:32]} O-O {[%emt 0:00:18]} 9. f3 {[%emt 0:00:18]} Nc6 {[%emt 0:03:39]} 10. g4 {[%emt 0:03:30]} Nxg4 {[%emt 0:00:14]} 11. fxg4 {[%emt 0:01:28]} Qh4+ {[%emt 0:00:33]} 12. Kd2 {[%emt 0:04:15]} Be4 {[%emt 0:00:24]} 13. Rg1 {[%emt 0:20:47]} Na5 {[%emt 0:00:15]} 14. Rg3 {[%emt 0:01:44]} Qxh2 {[%emt 0:02:14]} 15. Ke1 {[%emt 0:08:07]} Qh4 {[%emt 0:00:19]} 16. Kf2 {[%emt 0:01:27]} g5 {[%emt 0:00:30]} 17. Bg2 {[%emt 0:04:30]} f5 {[%emt 0:00:14]} 18. gxf5 {[%emt 0:05:45]} Rxf5+ {[%emt 0:01:20]} 19. Kg1 {[%emt 0:00:08]} Kh8 {[%emt 0:09:13]} 20. Bd2 {[%emt 0:09:37]} Raf8 {[%emt 0:02:22]} 21. Qe1 {[%emt 0:01:22]} Nb3 {[%emt 0:02:10]} 22. Ra2 {[%emt 0:00:37]} Bxg2 {[%emt 0:03:54]} 23. Rxg2 {[%emt 0:04:08]} Qxe1+ {[%emt 0:00:13]} 24. Bxe1 {[%emt 0:00:04]} Rf1+ {[%emt 0:00:04]} 25. Kh2 {[%emt 0:00:07]} Rxe1 {[%emt 0:00:05]} 26. Rxg5 {[%emt 0:01:28]} Rf2+ {[%emt 0:06:01]} 27. Rg2 {[%emt 0:00:12]} Rxg2+ {[%emt 0:00:07]} 28. Kxg2 {[%emt 0:00:04]} Nc1 {[%emt 0:00:07]} 29. Nxc1 {[%emt 0:01:01]} Rxc1 {[%emt 0:00:05]} 30. Rf2 {[%emt 0:03:38]} Kg7 {[%emt 0:01:38]} 31. Rf5 {[%emt 0:00:18]} c6 {[%emt 0:00:39]} 32. Re5 {[%emt 0:00:27]} Kf6 {[%emt 0:00:14]} 33. Rh5 {[%emt 0:00:30]} Kg6 {[%emt 0:00:06]} 34. Re5 {[%emt 0:00:12]} Rxc3 {[%emt 0:00:37]} 35. Re7 {[%emt 0:00:26]} Rxa3 {[%emt 0:05:17]} 36. Rxb7 {[%emt 0:00:14]} Rxe3 {[%emt 0:00:07]} 37. Rxa7 {[%emt 0:00:25]} h5 {[%emt 0:02:02]} 38. Rc7 {[%emt 0:01:05]} Rc3 {[%emt 0:00:10]} 39. Re7 {[%emt 0:01:04]} h4 {[%emt 0:00:40]} 40. Re5 {[%emt 0:00:57]} Kf6 {[%emt 0:02:55]} 41. Rh5 {[%emt 0:03:17]} h3+ {[%emt 0:00:06]} 42. Kh2 {[%emt 0:00:22]} Ke6 {[%emt 0:00:19]} 43. Re5+ {[%emt 0:00:59]} Kd6 {[%emt 0:00:07]} 44. Rh5 {[%emt 0:00:39]} Rd3 {[%emt 0:00:12]} 45. Rh6+ {[%emt 0:00:57]} Kc7 {[%emt 0:00:07]} 46. Rh4 {[%emt 0:00:43]} Kb6 {[%emt 0:00:09]} 47. Rf4 {[%emt 0:00:17]} Kb5 {[%emt 0:00:04]} 48. Rg4 {[%emt 0:00:10]} Re3 {[%emt 0:00:26]} 49. Rg1 {[%emt 0:00:29]} Kc4 {[%emt 0:00:16]} 50. Rd1 {[%emt 0:00:41]} Rd3 {[%emt 0:00:58]} 51. Rc1+ {[%emt 0:00:08]} Rc3 {[%emt 0:00:03]} 52. Rd1 {[%emt 0:00:15]} Kb3 {[%emt 0:00:14]} 53. Rf1 {[%emt 0:01:38]} Kc2 {[%emt 0:00:55]} 54. Rf4 {[%emt 0:00:14]} Kd3 {[%emt 0:00:35]} 55. Kxh3 {[%emt 0:01:27]} Rc4 {[%emt 0:00:09]} 0-1

[Event "SixDays One Year IM-B 2023"]
[Site "Budapest"]
[Date "2023.09.20"]
[Round "5.5"]
[White "Szeberenyi, Adam"]
[Black "Besou, Hussain"]
[Result "1/2-1/2"]
[ECO "D26"]
[WhiteElo "2305"]
[BlackElo "2364"]
[Annotator "ChessBase"]
[PlyCount "78"]
[EventDate "2023.09.18"]
[EventType "tourn"]
[EventCountry "HUN"]
[SourceTitle "playchess.com"]
[Source "ChessBase"]
[SourceQuality "1"]
[TimeControl "5400+30"]

1. d4 {[%emt 0:00:33]} d5 {[%emt 0:00:09]} 2. c4 {[%emt 0:00:27]} dxc4 {[%emt 0:00:07]} 3. Nf3 {[%emt 0:00:34]} Nf6 {[%emt 0:00:07]} 4. e3 {[%emt 0:00:08]} e6 {[%emt 0:00:05]} 5. Bxc4 {[%emt 0:01:18]} a6 {[%emt 0:00:08]} 6. O-O {[%emt 0:01:20]} b5 {[%emt 0:00:14]} 7. Be2 {[%emt 0:08:26]} Bb7 {[%emt 0:01:04]} 8. b3 {[%emt 0:00:10]} Nbd7 {[%emt 0:00:19]} 9. Bb2 {[%emt 0:00:19]} c5 {[%emt 0:00:46]} 10. Nbd2 {[%emt 0:02:59]} Be7 {[%emt 0:00:28]} 11. a4 {[%emt 0:05:17]} b4 {[%emt 0:00:15]} 12. Nc4 {[%emt 0:01:05]} O-O {[%emt 0:01:37]} 13. Nfe5 {[%emt 0:01:34]} cxd4 {[%emt 0:05:33]} 14. Qxd4 {[%emt 0:11:33]} Nc5 {[%emt 0:03:11]} 15. Rad1 {[%emt 0:00:59]} Qxd4 {[%emt 0:12:37]} 16. exd4 {[%emt 0:00:10]} Nce4 {[%emt 0:00:43]} 17. Nb6 {[%emt 0:16:30]} Ra7 {[%emt 0:06:40]} 18. f3 {[%emt 0:07:55]} Nc3 {[%emt 0:02:39]} 19. Bxc3 {[%emt 0:00:36]} bxc3 {[%emt 0:00:05]} 20. Rc1 {[%emt 0:12:06]} Bb4 {[%emt 0:01:50]} 21. Nd3 {[%emt 0:06:19]} a5 {[%emt 0:00:21]} 22. Nxb4 {[%emt 0:05:45]} axb4 {[%emt 0:00:39]} 23. Nc4 {[%emt 0:00:10]} Rd8 {[%emt 0:00:37]} 24. Ne3 {[%emt 0:01:19]} Nd5 {[%emt 0:09:07]} 25. Nc2 {[%emt 0:00:41]} Ba6 {[%emt 0:00:46]} 26. Bxa6 {[%emt 0:02:33]} Rxa6 {[%emt 0:00:07]} 27. Rfe1 {[%emt 0:00:38]} Kf8 {[%emt 0:00:16]} 28. Re5 {[%emt 0:03:51]} Ke7 {[%emt 0:02:23]} 29. Rce1 {[%emt 0:00:07]} Kf6 {[%emt 0:00:30]} 30. f4 {[%emt 0:03:23]} g6 {[%emt 0:00:34]} 31. g3 {[%emt 0:01:05]} h5 {[%emt 0:05:43]} 32. h4 {[%emt 0:01:24]} Rb8 {[%emt 0:08:43]} 33. Ra1 {[%emt 0:00:40]} Ke7 {[%emt 0:01:41]} 34. Kf2 {[%emt 0:00:20]} Nf6 {[%emt 0:00:28]} 35. Ke2 {[%emt 0:00:49]} Nd7 {[%emt 0:01:03]} 36. Re4 {[%emt 0:01:18]} f5 {[%emt 0:01:01]} 37. Re3 {[%emt 0:00:05]} Kd6 {[%emt 0:00:17]} 38. Kd3 {[%emt 0:00:49]} Nf6 {[%emt 0:00:32]} 39. Re5 {[%emt 0:02:23]} Nd5 {[%emt 0:01:35]} 1/2-1/2

[Event "SixDays One Year IM-B 2023"]
[Site "Budapest"]
[Date "2023.09.21"]
[Round "6.1"]
[White "Meessen, Rudolf"]
[Black "Besou, Hussain"]
[Result "0-1"]
[ECO "A45"]
[WhiteElo "2109"]
[BlackElo "2364"]
[Annotator "ChessBase"]
[PlyCount "100"]
[EventDate "2023.09.18"]
[EventType "tourn"]
[EventCountry "HUN"]
[SourceTitle "playchess.com"]
[Source "ChessBase"]
[SourceQuality "1"]
[TimeControl "5400+30"]

1. d4 {[%emt 0:00:09]} Nf6 {[%emt 0:00:07]} 2. Nc3 {[%emt 0:00:15]} d5 {[%emt 0:00:07]} 3. Bf4 {[%emt 0:00:04]} a6 {[%emt 0:00:10]} 4. e3 {[%emt 0:00:09]} c5 {[%emt 0:00:07]} 5. dxc5 {[%emt 0:00:20]} Qa5 {[%emt 0:00:31]} 6. Qd2 {[%emt 0:01:07]} Nc6 {[%emt 0:07:24]} 7. O-O-O {[%emt 0:00:05]} e6 {[%emt 0:01:59]} 8. Bd6 {[%emt 0:04:15]} Bxd6 {[%emt 0:01:30]} 9. cxd6 {[%emt 0:00:05]} O-O {[%emt 0:00:19]} 10. Nf3 {[%emt 0:00:35]} b5 {[%emt 0:06:37]} 11. Nd4 {[%emt 0:05:47]} Nxd4 {[%emt 0:01:09]} 12. Qxd4 {[%emt 0:01:03]} b4 {[%emt 0:00:12]} 13. Nb1 {[%emt 0:00:20]} Ne4 {[%emt 0:03:33]} 14. Bd3 {[%emt 0:00:12]} Nxd6 {[%emt 0:00:50]} 15. Qh4 {[%emt 0:02:31]} f5 {[%emt 0:12:08]} 16. g4 {[%emt 0:00:08]} Ra7 {[%emt 0:00:38]} 17. Rhg1 {[%emt 0:00:57]} e5 {[%emt 0:04:38]} 18. a3 {[%emt 0:13:13]} bxa3 {[%emt 0:02:05]} 19. Nxa3 {[%emt 0:00:17]} Rb7 {[%emt 0:05:42]} 20. c3 {[%emt 0:06:28]} e4 {[%emt 0:09:18]} 21. Be2 {[%emt 0:00:18]} Be6 {[%emt 0:02:57]} 22. gxf5 {[%emt 0:01:35]} Nxf5 {[%emt 0:00:38]} 23. Qf4 {[%emt 0:00:15]} Qb6 {[%emt 0:02:08]} 24. Rd2 {[%emt 0:01:41]} Nd4 {[%emt 0:00:17]} 25. Qxf8+ {[%emt 0:00:28]} Kxf8 {[%emt 0:00:05]} 26. cxd4 {[%emt 0:02:14]} Qc7+ {[%emt 0:02:26]} 27. Nc2 {[%emt 0:01:32]} Qxh2 {[%emt 0:00:35]} 28. Rg5 {[%emt 0:00:08]} Qb8 {[%emt 0:04:06]} 29. Ne1 {[%emt 0:02:06]} Rc7+ {[%emt 0:02:01]} 30. Rc2 {[%emt 0:00:05]} Rxc2+ {[%emt 0:00:20]} 31. Kxc2 {[%emt 0:00:05]} Qb4 {[%emt 0:00:10]} 32. Ng2 {[%emt 0:01:14]} Qa4+ {[%emt 0:05:20]} 33. Kb1 {[%emt 0:00:26]} Qa5 {[%emt 0:02:05]} 34. Nf4 {[%emt 0:04:16]} Qe1+ {[%emt 0:00:18]} 35. Ka2 {[%emt 0:00:02]} Bf7 {[%emt 0:00:15]} 36. Rf5 {[%emt 0:08:30]} g6 {[%emt 0:06:19]} 37. Rf6 {[%emt 0:00:11]} Kg7 {[%emt 0:00:37]} 38. Rxa6 {[%emt 0:00:04]} Qxf2 {[%emt 0:00:18]} 39. Ra3 {[%emt 0:04:12]} h5 {[%emt 0:01:53]} 40. Bb5 {[%emt 0:00:09]} g5 {[%emt 0:01:30]} 41. Ne2 {[%emt 0:00:59]} h4 {[%emt 0:01:16]} 42. Ra7 {[%emt 0:01:36]} h3 {[%emt 0:00:51]} 43. Be8 {[%emt 0:00:05]} Qxe2 {[%emt 0:00:09]} 44. Bxf7 {[%emt 0:01:31]} Qc4+ {[%emt 0:02:56]} 45. Ka3 {[%emt 0:01:06]} Kf6 {[%emt 0:00:24]} 46. Be8 {[%emt 0:04:56]} Qc8 {[%emt 0:02:01]} 47. Bb5 {[%emt 0:02:23]} g4 {[%emt 0:00:42]} 48. Rh7 {[%emt 0:02:43]} g3 {[%emt 0:01:31]} 49. Bd7 {[%emt 0:00:07]} Qf8+ {[%emt 0:00:17]} 50. b4 {[%emt 0:00:20]} g2 {[%emt 0:00:05]} 0-1

[Event "SixDays One Year IM-B 2023"]
[Site "Budapest"]
[Date "2023.09.21"]
[Round "6.2"]
[White "Kozusek, Daniel"]
[Black "Szeberenyi, Adam"]
[Result "0-1"]
[ECO "A45"]
[WhiteElo "2365"]
[BlackElo "2305"]
[Annotator "ChessBase"]
[PlyCount "72"]
[EventDate "2023.09.18"]
[EventType "tourn"]
[EventCountry "HUN"]
[SourceTitle "playchess.com"]
[Source "ChessBase"]
[SourceQuality "1"]
[TimeControl "5400+30"]

1. d4 {[%emt 0:00:04]} Nf6 {[%emt 0:00:39]} 2. Bg5 {[%emt 0:01:27]} d5 {[%emt 0:00:35]} 3. e3 {[%emt 0:00:34]} e6 {[%emt 0:04:23]} 4. Nd2 {[%emt 0:00:15]} c5 {[%emt 0:04:42]} 5. c3 {[%emt 0:00:08]} Nc6 {[%emt 0:00:12]} 6. Ngf3 {[%emt 0:00:17]} Qb6 {[%emt 0:16:11]} 7. Rb1 {[%emt 0:03:39]} Nd7 {[%emt 0:04:45]} 8. Bd3 {[%emt 0:15:13]} Be7 {[%emt 0:01:11]} 9. Bxe7 {[%emt 0:06:06]} Nxe7 {[%emt 0:00:06]} 10. O-O {[%emt 0:00:44]} O-O {[%emt 0:02:13]} 11. Qe2 {[%emt 0:13:33]} Ng6 {[%emt 0:11:12]} 12. b4 {[%emt 0:02:08]} cxd4 {[%emt 0:08:44]} 13. cxd4 {[%emt 0:00:07]} Qd6 {[%emt 0:01:25]} 14. Ng5 {[%emt 0:08:11]} e5 {[%emt 0:01:25]} 15. dxe5 {[%emt 0:05:58]} Ndxe5 {[%emt 0:04:24]} 16. Bc2 {[%emt 0:01:26]} Bg4 {[%emt 0:05:37]} 17. f3 {[%emt 0:08:05]} Rac8 {[%emt 0:02:41]} 18. Nb3 {[%emt 0:11:47]} Bd7 {[%emt 0:01:30]} 19. f4 {[%emt 0:00:43]} Ng4 {[%emt 0:00:47]} 20. Bxg6 {[%emt 0:04:47]} Qxg6 {[%emt 0:01:13]} 21. h3 {[%emt 0:01:25]} Rc2 {[%emt 0:04:21]} 22. Qe1 {[%emt 0:08:25]} Nf6 {[%emt 0:03:16]} 23. Rf2 {[%emt 0:00:17]} Rxf2 {[%emt 0:09:30]} 24. Kxf2 {[%emt 0:00:05]} Qc2+ {[%emt 0:00:09]} 25. Kg1 {[%emt 0:00:26]} Re8 {[%emt 0:00:08]} 26. Nf3 {[%emt 0:01:56]} Rxe3 {[%emt 0:00:53]} 27. Qxe3 {[%emt 0:00:20]} Qxb1+ {[%emt 0:00:09]} 28. Kh2 {[%emt 0:00:18]} Qe4 {[%emt 0:02:49]} 29. Qd2 {[%emt 0:00:23]} b6 {[%emt 0:03:29]} 30. Ne5 {[%emt 0:01:29]} Bb5 {[%emt 0:00:31]} 31. Nd4 {[%emt 0:01:16]} Bf1 {[%emt 0:00:57]} 32. Ndf3 {[%emt 0:01:32]} Nh5 {[%emt 0:02:52]} 33. Kg1 {[%emt 0:00:55]} Bc4 {[%emt 0:02:22]} 34. Nxc4 {[%emt 0:02:13]} Qxc4 {[%emt 0:00:01]} 35. Nd4 {[%emt 0:00:28]} Ng3 {[%emt 0:00:02]} 36. Nf3 {[%emt 0:01:06]} Qf1+ {[%emt 0:00:26]} 0-1